bitfinex/quotes_BTCUSD_20230118
["timestamp","ask_amount","ask_price","bid_price","bid_amount"]
[1674064970191,0.4773408,20897.0,20896.0,1.64446476]
[1674064970445,0.4783408,20897.0,20896.0,2.20566645]
[1674064970710,0.4783408,20897.0,20896.0,3.4985102]
[1674064970966,0.4783408,20897.0,20896.0,3.7848102]
[1674064971256,0.4783408,20897.0,20896.0,3.4985102]
[1674064971523,0.4783408,20897.0,20896.0,2.9977102]
[1674064971768,0.4763408,20897.0,20896.0,2.8297102]
[1674064972020,0.4763408,20897.0,20896.0,2.03766645]
[1674064972327,0.4763408,20897.0,20896.0,2.8296502]
[1674064972545,0.4763408,20897.0,20896.0,2.35244851]
[1674064972797,0.4763408,20897.0,20896.0,1.35240476]
[1674064973051,0.4763408,20897.0,20896.0,1.26040476]
[1674064973314,0.4763408,20897.0,20896.0,1.96625573]
[1674064973563,0.4763408,20897.0,20896.0,1.39569573]
[1674064973814,0.4763408,20897.0,20896.0,1.49469573]
[1674064974327,0.4763408,20897.0,20896.0,2.41253573]
[1674064974577,0.4763408,20897.0,20896.0,2.11353573]
[1674064975096,0.4763408,20897.0,20896.0,1.79968476]
[1674064975369,0.4763408,20897.0,20896.0,2.68372851]
[1674064975873,0.4763408,20897.0,20896.0,2.59172851]
[1674064976118,0.4763408,20897.0,20896.0,2.94731708]
[1674064976368,0.4763408,20897.0,20896.0,3.98545979]
[1674064976619,0.4763408,20897.0,20896.0,4.86732869]
[1674064977143,0.4763408,20897.0,20896.0,5.53775932]
[1674064977438,0.4763408,20897.0,20896.0,4.77532869]
[1674064977675,0.4763408,20897.0,20896.0,5.53775932]
[1674064977943,0.4763408,20897.0,20896.0,5.44575932]
[1674064978230,0.4763408,20897.0,20896.0,5.53775932]
[1674064978488,0.4763408,20897.0,20896.0,5.66635932]
[1674064978756,0.4763408,20897.0,20896.0,5.75835932]
[1674064978999,0.08835416,20897.0,20896.0,6.17435932]
[1674064979259,0.01090122,20899.0,20896.0,6.07348869]
[1674064979512,0.2705384,20900.0,20898.0,3.16340169]
[1674064979766,0.00838246,20901.0,20900.0,0.7871]
[1674064980020,0.6191,20907.0,20903.0,0.7871]
[1674064980273,0.6191,20907.0,20903.0,3.36102465]
[1674064980521,0.6191,20907.0,20903.0,4.93216122]
[1674064980764,0.6191,20907.0,20903.0,5.75000393]
[1674064981028,0.00830423,20909.0,20904.0,0.89296652]
[1674064981286,0.00830423,20909.0,20904.0,3.76058849]
[1674064981543,0.3839,20914.0,20912.0,1.14687183]
[1674064981805,0.3839,20914.0,20913.0,0.66842296]
[1674064981806,1.3356458,20914.0,20913.0,0.66842296]
[1674064982317,1.7867848,20914.0,20913.0,0.56519953]
[1674064983653,0.922539,20914.0,20913.0,0.56519953]
[1674064983938,0.6,20914.0,20913.0,0.87019953]
[1674064984167,0.6,20914.0,20913.0,0.94916297]
[1674064984168,1.556296,20914.0,20913.0,0.94916297]
[1674064984450,0.479148,20914.0,20913.0,0.65019953]
[1674064984683,0.478127,20915.0,20913.0,0.56519953]
[1674064984941,0.478127,20915.0,20914.0,0.50332412]
[1674064985187,0.93727,20915.0,20914.0,0.90608571]
[1674064985693,1.544015,20915.0,20912.0,1.65019595]
[1674064985975,0.35486,20913.0,20912.0,1.48786115]
[1674064986240,0.306508,20913.0,20912.0,1.14687183]
[1674064986528,1.02058562,20913.0,20912.0,1.48785845]
[1674064986784,0.49875662,20913.0,20912.0,1.48785845]
[1674064987039,0.001,20913.0,20912.0,1.22587183]
[1674064987291,0.1279,20915.0,20912.0,1.65019595]
[1674064987551,0.5422,20917.0,20913.0,0.80583089]
[1674064987841,0.54203955,20917.0,20914.0,0.34081833]
[1674064988055,0.54203955,20917.0,20914.0,0.44404176]
[1674064988325,0.81835246,20918.0,20914.0,0.44404176]
[1674064988580,0.001,20915.0,20914.0,0.44404176]
[1674064988846,0.001,20915.0,20914.0,0.34081833]
[1674064989086,0.001,20915.0,20913.0,0.34341613]
[1674064989362,0.39486375,20916.0,20913.0,0.34341613]
[1674064989363,0.87297475,20916.0,20913.0,0.34341613]
[1674064989619,0.87297475,20916.0,20914.0,0.071]
[1674064989855,0.1236,20916.0,20914.0,0.34081833]
[1674064990136,0.002,20915.0,20914.0,0.34931833]
[1674064990409,0.478094,20917.0,20916.0,0.2452]
[1674064990681,1.64991659,20917.0,20916.0,0.41565543]
[1674064991203,2.73512451,20917.0,20916.0,0.35883971]
[1674064991463,0.329329,20916.0,20914.0,0.11363971]
[1674064991716,1.38481832,20916.0,20915.0,0.11363971]
[1674064991968,1.268933,20915.0,20914.0,0.11371785]
[1674064992244,0.333269,20914.0,20913.0,0.0025978]
[1674064992475,0.76829911,20914.0,20913.0,0.11631565]
[1674064992740,0.817245,20914.0,20913.0,0.28689717]
[1674064992999,0.817245,20914.0,20913.0,0.0025978]
[1674064993269,1.017245,20914.0,20913.0,0.28691631]
[1674064993575,1.017245,20914.0,20913.0,0.17317932]
[1674064993576,1.495393,20914.0,20913.0,0.17317932]
[1674064993771,1.308393,20914.0,20913.0,0.29093059]
[1674064994058,1.084896,20914.0,20913.0,0.29543059]
[1674064994341,1.084896,20914.0,20913.0,0.30443059]
[1674064994342,1.400755,20914.0,20913.0,0.30443059]
[1674064994566,1.72587673,20914.0,20913.0,0.23920747]
[1674064994825,1.529355,20914.0,20913.0,0.12540649]
[1674064995092,1.529355,20914.0,20913.0,0.0115978]
[1674064995347,1.529355,20914.0,20913.0,0.18231424]
[1674064995648,1.529355,20914.0,20913.0,0.40092391]
[1674064995868,1.541355,20914.0,20913.0,0.52054026]
[1674064996145,0.78794056,20914.0,20913.0,0.29314597]
[1674064996373,1.010405,20914.0,20913.0,0.0085978]
[1674064996636,1.488553,20914.0,20913.0,0.0025978]
[1674064996888,1.489553,20914.0,20913.0,0.0095978]
[1674064997144,1.488553,20914.0,20913.0,0.2025978]
[1674064997426,2.44514923,20914.0,20913.0,0.2095978]
[1674064997664,2.61025469,20914.0,20913.0,0.2095978]
[1674064998165,2.61025469,20914.0,20912.0,0.11545183]
[1674064998423,1.73354369,20913.0,20912.0,0.11545183]
[1674064998696,2.27098921,20913.0,20910.0,0.2]
[1674064998959,0.275057,20912.0,20910.0,0.2]
[1674064999230,1.91185269,20911.0,20910.0,0.2]
[1674064999528,2.21221307,20911.0,20910.0,0.2]
[1674065000044,2.21221307,20911.0,20909.0,0.11382076]
[1674065000292,1.68045607,20911.0,20910.0,0.015]
[1674065000554,2.44410969,20911.0,20910.0,0.015]
[1674065000818,2.44410969,20911.0,20906.0,0.28454817]
[1674065000819,3.94777366,20911.0,20906.0,0.28454817]
[1674065001094,1.68498002,20910.0,20906.0,0.11382076]
[1674065001356,1.68498002,20910.0,20905.0,0.11382076]
[1674065001357,3.36498212,20909.0,20905.0,0.11382076]
[1674065001613,1.19065905,20908.0,20906.0,6e-05]
[1674065001866,2.10741697,20909.0,20906.0,6e-05]
[1674065001867,2.81282569,20907.0,20906.0,6e-05]
[1674065002129,3.08788269,20907.0,20906.0,0.00506]
[1674065002392,3.37125929,20907.0,20906.0,0.00506]
[1674065003195,3.37125929,20907.0,20906.0,6e-05]
[1674065003479,3.3611299,20907.0,20906.0,6e-05]
[1674065004545,3.38788269,20907.0,20906.0,6e-05]
[1674065005092,3.31354164,20907.0,20906.0,6e-05]
[1674065005357,3.31354164,20907.0,20906.0,0.00806]
[1674065005610,3.31354164,20907.0,20906.0,6e-05]
[1674065005868,3.64598813,20907.0,20906.0,0.00606]
[1674065006161,3.88517533,20907.0,20906.0,0.00606]
[1674065006413,3.41588269,20907.0,20906.0,0.00606]
[1674065006660,3.38069067,20907.0,20906.0,0.00606]
[1674065006922,3.38069067,20907.0,20906.0,0.10928343]
[1674065007184,2.73789067,20907.0,20906.0,0.00606]
[1674065007434,2.26068898,20907.0,20906.0,0.00606]
[1674065007713,2.26068898,20907.0,20906.0,0.006]
[1674065008274,2.26068898,20907.0,20906.0,0.1022]
[1674065008275,1.388973,20907.0,20906.0,0.1022]
[1674065008531,0.506308,20907.0,20906.0,0.11982076]
[1674065008829,0.781365,20907.0,20906.0,0.11982076]
[1674065009081,0.781365,20907.0,20906.0,0.006]
[1674065009355,0.506308,20907.0,20906.0,0.11982076]
[1674065009627,0.7162319,20908.0,20907.0,0.87623268]
[1674065009628,0.478287,20908.0,20907.0,0.87623268]
[1674065009887,0.478274,20909.0,20907.0,0.6791101]
[1674065010195,0.956536,20909.0,20908.0,0.6]
[1674065010729,0.275057,20909.0,20908.0,0.85857504]
[1674065010977,0.2,20910.0,20908.0,0.97267384]
[1674065011231,0.25,20910.0,20909.0,0.1047]
[1674065011998,0.24906775,20910.0,20909.0,0.1047]
[1674065012252,0.24906775,20910.0,20909.0,0.1035]
[1674065012561,1.00236475,20910.0,20909.0,0.1035]
[1674065013126,0.72730775,20910.0,20909.0,0.1035]
[1674065013354,1.20554775,20910.0,20909.0,0.1035]
[1674065013585,1.60920475,20910.0,20909.0,0.1035]
[1674065014018,1.48060475,20910.0,20909.0,0.095]
[1674065014696,1.48060475,20910.0,20909.0,0.29448343]
[1674065014697,0.52412475,20910.0,20909.0,0.29448343]
[1674065014930,0.52412475,20910.0,20909.0,0.7836208]
[1674065014931,0.24906775,20910.0,20909.0,0.7836208]
[1674065015153,0.24906775,20910.0,20909.0,1.8778688]
[1674065015418,0.24906775,20910.0,20909.0,2.4613701]
[1674065015669,0.24906775,20910.0,20909.0,2.74570289]
[1674065015886,0.24906775,20910.0,20909.0,1.48917889]
[1674065016121,0.478174,20913.0,20912.0,0.68576312]
[1674065016336,0.478171,20913.0,20912.0,1.28576312]
[1674065016776,1.23142,20913.0,20912.0,1.28576312]
[1674065017015,0.275057,20913.0,20912.0,1.28576312]
[1674065017242,0.95633,20914.0,20912.0,1.28576312]
[1674065017460,0.39064702,20917.0,20912.0,1.37976312]
[1674065017682,0.956214,20916.0,20913.0,0.10322343]
[1674065017926,0.478102,20916.0,20915.0,0.6]
[1674065018580,0.753159,20916.0,20915.0,0.6]
[1674065018806,1.231261,20916.0,20915.0,0.6]
[1674065019023,0.956204,20916.0,20915.0,0.6]
[1674065019261,1.08793047,20916.0,20915.0,0.6]
[1674065019526,1.36298747,20916.0,20915.0,0.694]
[1674065019964,1.49158747,20916.0,20915.0,0.694]
[1674065020188,1.61998747,20916.0,20915.0,0.094]
[1674065020449,1.87155824,20916.0,20915.0,0.094]
[1674065020663,2.39718916,20916.0,20915.0,0.094]
[1674065020934,4.21374415,20916.0,20915.0,0.094]
[1674065021171,4.04227552,20916.0,20912.0,0.31710405]
[1674065021371,0.897,20913.0,20912.0,0.31710405]
[1674065021608,3.86194269,20913.0,20912.0,0.31710405]
[1674065021817,3.56194269,20913.0,20912.0,0.31710405]
[1674065022047,4.01639718,20913.0,20909.0,0.6]
[1674065022278,0.2565,20910.0,20909.0,0.6]
[1674065022494,2.84098266,20910.0,20907.0,0.5650113]
[1674065022714,0.1286,20908.0,20907.0,0.5650113]
[1674065022947,1.563455,20908.0,20907.0,1.1650113]
[1674065023176,1.709912,20908.0,20907.0,1.1650113]
[1674065023628,1.95225372,20908.0,20907.0,1.1650113]
[1674065023837,2.34953309,20908.0,20907.0,1.1650113]
[1674065024079,2.08085372,20908.0,20907.0,1.1650113]
[1674065026162,2.55805541,20908.0,20907.0,1.1650113]
[1674065026363,2.68565541,20908.0,20907.0,1.1650113]
[1674065027063,1.99585372,20908.0,20907.0,1.1650113]
[1674065027250,2.02385372,20908.0,20907.0,1.1650113]
[1674065027700,2.50105541,20908.0,20907.0,1.1650113]
[1674065027919,2.91111985,20908.0,20907.0,1.1650113]
[1674065028173,2.50105541,20908.0,20907.0,1.1650113]
[1674065028389,2.47305541,20908.0,20907.0,1.1650113]
[1674065028587,2.56405541,20908.0,20907.0,1.1650113]
[1674065029022,2.08685372,20908.0,20907.0,1.1650113]
[1674065029243,1.95925372,20908.0,20907.0,1.1650113]
[1674065029469,1.19808893,20908.0,20907.0,1.1650113]
[1674065029720,1.67637393,20908.0,20907.0,1.1735113]
[1674065029932,1.40131693,20908.0,20907.0,1.1735113]
[1674065031060,1.67637393,20908.0,20907.0,1.1735113]
[1674065031536,1.19808893,20908.0,20907.0,1.1735113]
[1674065031736,0.92303193,20908.0,20907.0,1.1735113]
[1674065032411,0.92303193,20908.0,20907.0,1.17360346]
[1674065033101,0.92303193,20908.0,20907.0,1.1735113]
[1674065033326,0.92303193,20908.0,20907.0,1.17360346]
[1674065033553,0.44474693,20908.0,20907.0,1.17360346]
[1674065033993,0.92303193,20908.0,20907.0,1.17360346]
[1674065034211,0.44474693,20908.0,20907.0,1.17360346]
[1674065035604,0.35374693,20908.0,20907.0,1.17360346]
[1674065035788,0.006,20908.0,20907.0,1.18160346]
[1674065036238,0.006,20908.0,20907.0,1.48160346]
[1674065036466,0.478256,20910.0,20908.0,0.012]
[1674065036688,0.478256,20910.0,20909.0,0.1047]
[1674065037139,0.478256,20910.0,20909.0,0.6085]
[1674065037326,0.753313,20910.0,20909.0,0.6085]
[1674065038047,1.231553,20910.0,20909.0,0.6085]
[1674065038561,0.956496,20910.0,20909.0,0.6085]
[1674065038809,0.753313,20910.0,20909.0,0.6085]
[1674065039047,0.555256,20910.0,20909.0,0.6095]
[1674065039292,0.555256,20910.0,20909.0,0.9095]
[1674065039544,0.555256,20910.0,20909.0,0.6095]
[1674065039820,0.830313,20910.0,20909.0,0.6095]
[1674065040041,0.830297,20910.0,20909.0,0.6085]
[1674065040293,0.47824,20910.0,20909.0,0.6085]
[1674065040533,1.238537,20910.0,20909.0,0.6295]
[1674065040806,1.42585797,20910.0,20909.0,0.6]
[1674065041047,1.45670144,20910.0,20909.0,0.6]
[1674065041285,1.231537,20910.0,20909.0,0.6]
[1674065041797,1.238537,20910.0,20909.0,0.62109215]
[1674065042051,0.753297,20910.0,20909.0,0.60009215]
[1674065042295,0.786297,20910.0,20909.0,0.60309215]
[1674065042527,0.47824,20910.0,20909.0,0.60859215]
[1674065042772,0.308057,20910.0,20909.0,0.6115]
[1674065043010,0.478234,20911.0,20909.0,0.87737022]
[1674065043281,0.478215,20912.0,20910.0,0.3085]
[1674065043792,0.478215,20912.0,20911.0,9.214e-05]
[1674065044041,0.478178,20913.0,20911.0,0.09629214]
[1674065044293,0.956349,20913.0,20912.0,0.6085]
[1674065044532,0.2765723,20913.0,20912.0,0.6085]
[1674065044831,1.2329143,20913.0,20912.0,0.6085]
[1674065045056,1.4079713,20913.0,20912.0,0.6085]
[1674065045302,1.1329143,20913.0,20912.0,0.6085]
[1674065045540,1.231399,20913.0,20912.0,0.60859214]
[1674065045792,1.231399,20913.0,20912.0,0.6085]
[1674065046061,1.264399,20913.0,20912.0,0.6115]
[1674065046555,0.989342,20913.0,20912.0,0.6115]
[1674065046833,1.264399,20913.0,20912.0,0.6115]
[1674065047554,1.47526466,20913.0,20912.0,0.6115]
[1674065048048,0.51892266,20913.0,20912.0,0.61159214]
[1674065048289,1.47526466,20913.0,20912.0,0.6115]
[1674065048533,1.20020766,20913.0,20912.0,0.6115]
[1674065048771,1.47526466,20913.0,20912.0,0.6115]
[1674065050006,1.71842053,20913.0,20912.0,0.6115]
[1674065050498,1.71842053,20913.0,20908.0,0.44975864]
[1674065050499,2.914136,20913.0,20908.0,0.44975864]
[1674065050832,2.914136,20913.0,20908.0,0.012]
[1674065050833,0.47720169,20911.0,20908.0,0.012]
[1674065051095,0.1279,20909.0,20908.0,0.012]
[1674065051338,2.15860366,20909.0,20908.0,0.012]
[1674065051598,3.11551276,20909.0,20904.0,0.0087391]
[1674065051845,0.1286,20905.0,20904.0,0.0087391]
[1674065052101,2.98859566,20905.0,20904.0,0.0087391]
[1674065052343,2.79427469,20905.0,20904.0,0.0087391]
[1674065052834,0.1284,20904.0,20900.0,0.00909066]
[1674065053090,0.2548,20901.0,20900.0,0.00909066]
[1674065053335,1.435338,20901.0,20900.0,0.60909066]
[1674065053583,1.710395,20901.0,20900.0,0.83960586]
[1674065053825,1.90471597,20901.0,20900.0,0.60909066]
[1674065054085,1.710395,20901.0,20900.0,0.60909066]
[1674065054866,2.56940897,20901.0,20900.0,0.00909066]
[1674065055100,2.32809669,20901.0,20900.0,0.00909066]
[1674065057391,2.31609669,20901.0,20900.0,0.00909066]
[1674065057622,2.40709669,20901.0,20900.0,0.60909066]
[1674065058100,1.801395,20901.0,20900.0,0.60909066]
[1674065058583,2.05094728,20901.0,20900.0,0.60909066]
[1674065058834,2.05094728,20901.0,20900.0,0.00909066]
[1674065059071,2.83005084,20901.0,20900.0,0.00909066]
[1674065060043,2.48949856,20901.0,20900.0,0.00909066]
[1674065060290,2.36149856,20901.0,20900.0,0.00909066]
[1674065060785,2.36949856,20901.0,20900.0,0.01709066]
[1674065061036,2.36949856,20901.0,20900.0,0.00909066]
[1674065061037,2.36149856,20901.0,20900.0,0.00909066]
[1674065061297,2.88826792,20901.0,20900.0,0.00909066]
[1674065061550,3.76504695,20901.0,20900.0,0.00909066]
[1674065061793,4.00458814,20901.0,20900.0,0.01009066]
[1674065062048,3.84058814,20901.0,20900.0,0.00909066]
[1674065062298,3.24373788,20901.0,20900.0,0.00909066]
[1674065062549,2.47393788,20901.0,20900.0,0.00909066]
[1674065062795,1.86793619,20901.0,20900.0,0.00909066]
[1674065063042,1.94993619,20901.0,20900.0,0.01009066]
[1674065063339,1.431949,20901.0,20900.0,0.10529066]
[1674065063592,1.239892,20901.0,20900.0,0.11479066]
[1674065063838,1.156892,20901.0,20900.0,0.01579066]
[1674065064087,1.239892,20901.0,20900.0,0.01679066]
[1674065064327,1.39041989,20901.0,20900.0,0.01679066]
[1674065064808,1.19841989,20901.0,20900.0,0.12099066]
[1674065065335,0.92336289,20901.0,20900.0,0.12099066]
[1674065065832,0.35391689,20901.0,20900.0,0.11199066]
[1674065066080,1.156826,20903.0,20901.0,0.39974305]
[1674065066338,0.478427,20902.0,20901.0,0.39974305]
[1674065066580,0.6784,20903.0,20901.0,1.00824305]
[1674065066828,0.4784,20903.0,20901.0,0.99974305]
[1674065067085,0.20283419,20902.0,20901.0,1.00774305]
[1674065067327,0.20283419,20902.0,20901.0,1.00824305]
[1674065067558,0.20283419,20902.0,20901.0,1.01624305]
[1674065067808,0.20283419,20902.0,20901.0,1.00824305]
[1674065068048,0.008,20902.0,20901.0,1.01624305]
[1674065068287,0.10566,20902.0,20901.0,1.01624305]
[1674065068529,1.239903,20902.0,20901.0,1.01624305]
[1674065068788,0.486423,20902.0,20901.0,1.01624305]
[1674065069029,0.008,20902.0,20901.0,1.28242811]
[1674065070361,0.008,20902.0,20901.0,1.58242811]
[1674065070610,0.008,20902.0,20901.0,1.28242811]
[1674065070611,0.486423,20902.0,20901.0,1.28242811]
[1674065070891,0.486423,20902.0,20901.0,1.01624305]
[1674065071133,1.17769275,20902.0,20901.0,1.01624305]
[1674065071623,1.45274975,20902.0,20901.0,1.01624305]
[1674065071873,1.17769275,20902.0,20901.0,1.01624305]
[1674065072105,1.45274975,20902.0,20901.0,1.01624305]
[1674065073103,1.239903,20902.0,20901.0,1.01624305]
[1674065073349,0.964846,20902.0,20901.0,1.01624305]
[1674065073728,0.008,20902.0,20901.0,1.01624305]
[1674065075295,0.008,20902.0,20901.0,1.79468905]
[1674065075543,0.9224839,20906.0,20902.0,0.016]
[1674065075831,0.9224839,20906.0,20903.0,0.43847643]
[1674065075832,0.956701,20906.0,20903.0,0.43847643]
[1674065076089,0.478324,20907.0,20905.0,0.6]
[1674065076340,0.478332,20906.0,20905.0,0.6]
[1674065076605,0.478332,20906.0,20905.0,0.6085]
[1674065077118,0.486332,20906.0,20905.0,0.6085]
[1674065077388,0.478324,20907.0,20905.0,0.6085]
[1674065077637,0.075,20906.0,20905.0,0.6105]
[1674065077890,1.306719,20906.0,20905.0,0.6105]
[1674065078417,0.956662,20906.0,20905.0,0.6085]
[1674065078685,1.39805868,20906.0,20905.0,0.6105]
[1674065078943,1.52575868,20906.0,20905.0,0.602]
[1674065079229,1.52575868,20906.0,20905.0,0.6]
[1674065079230,1.82158615,20906.0,20905.0,0.6]
[1674065079500,2.29878784,20906.0,20905.0,0.6]
[1674065079759,2.13244816,20906.0,20902.0,0.616]
[1674065080033,0.91631287,20905.0,20902.0,0.616]
[1674065080286,0.27448134,20904.0,20902.0,0.616]
[1674065080590,0.274462,20903.0,20902.0,0.616]
[1674065080898,1.231262,20903.0,20902.0,0.616]
[1674065081438,1.89039554,20903.0,20902.0,0.616]
[1674065081707,2.36691577,20903.0,20902.0,0.616]
[1674065081961,2.0382897,20903.0,20902.0,0.616]
[1674065082810,2.0382897,20903.0,20902.0,0.816]
[1674065083085,2.0382897,20903.0,20902.0,0.83]
[1674065083086,1.9176897,20903.0,20902.0,0.83]
[1674065083345,1.9096897,20903.0,20902.0,0.616]
[1674065083633,1.9866897,20903.0,20902.0,0.617]
[1674065085781,2.29389407,20903.0,20902.0,0.617]
[1674065086039,1.9866897,20903.0,20902.0,0.617]
[1674065086327,1.50948801,20903.0,20902.0,0.617]
[1674065086591,1.50948801,20903.0,20902.0,0.6255]
[1674065088449,1.70948801,20903.0,20902.0,0.6255]
[1674065090039,1.94827451,20903.0,20902.0,0.6255]
[1674065090588,1.70948801,20903.0,20902.0,0.6255]
[1674065091881,2.66656038,20903.0,20902.0,0.6255]
[1674065092933,2.46656038,20903.0,20902.0,0.6255]
[1674065093191,1.50948801,20903.0,20902.0,0.6255]
[1674065094000,1.03108801,20903.0,20902.0,0.6255]
[1674065094256,0.5554,20903.0,20902.0,0.73965171]
[1674065094524,0.478363,20905.0,20903.0,0.14371068]
[1674065094793,0.478363,20905.0,20904.0,0.0085]
[1674065095052,2.31887728,20905.0,20904.0,0.0085]
[1674065095619,2.79607897,20905.0,20904.0,0.0085]
[1674065095873,3.40193297,20905.0,20904.0,0.0085]
[1674065096139,3.27123818,20905.0,20904.0,0.0085]
[1674065096422,3.47893531,20905.0,20904.0,0.0085]
[1674065096678,3.47893531,20905.0,20904.0,0.0115]
[1674065096978,3.47893531,20905.0,20904.0,0.0085]
[1674065097236,3.47893531,20905.0,20904.0,0.0155]
[1674065098007,2.87423362,20905.0,20904.0,0.0155]
[1674065099029,3.05868184,20905.0,20904.0,0.0155]
[1674065099611,2.87423362,20905.0,20904.0,0.0155]
[1674065100386,1.23117,20905.0,20904.0,0.1117]
[1674065100649,0.956708,20905.0,20904.0,0.0155]
[1674065100919,1.23117,20905.0,20904.0,0.0155]
[1674065101442,2.18811236,20905.0,20904.0,0.0085]
[1674065101713,2.36604705,20905.0,20904.0,0.0085]
[1674065101971,2.49354705,20905.0,20904.0,0.0085]
[1674065102802,2.31561236,20905.0,20904.0,0.0115]
[1674065103941,2.95733064,20905.0,20904.0,0.0115]
[1674065104202,3.2171722,20905.0,20904.0,0.003]
[1674065104475,3.58652743,20905.0,20904.0,0.003]
[1674065104755,3.88652743,20905.0,20904.0,0.003]
[1674065105016,3.69977439,20905.0,20904.0,0.003]
[1674065105531,3.58652743,20905.0,20904.0,0.003]
[1674065105799,3.69977439,20905.0,20904.0,0.003]
[1674065106058,2.97632524,20905.0,20904.0,0.003]
[1674065107380,3.55996195,20905.0,20904.0,0.003]
[1674065107684,3.2632038,20905.0,20904.0,0.003]
[1674065107952,3.88495928,20905.0,20904.0,0.003]
[1674065108223,4.56756147,20905.0,20904.0,0.003]
[1674065108503,3.91447126,20905.0,20904.0,0.003]
[1674065108764,3.8208581,20905.0,20904.0,0.003]
[1674065109063,3.40784095,20905.0,20903.0,0.04751068]
[1674065109317,1.96570605,20904.0,20903.0,0.04751068]
[1674065109573,2.79396005,20904.0,20903.0,0.04751068]
[1674065109834,2.79396005,20904.0,20903.0,0.05601068]
[1674065110347,2.88596005,20904.0,20903.0,0.05601068]
[1674065110611,2.75736005,20904.0,20903.0,0.05601068]
[1674065110871,2.75736005,20904.0,20903.0,0.15221068]
[1674065110872,1.323216,20904.0,20903.0,0.15221068]
[1674065111131,1.048754,20904.0,20903.0,0.15221068]
[1674065111397,1.323216,20904.0,20903.0,0.05601068]
[1674065111701,1.4759268,20904.0,20901.0,0.82175373]
[1674065111961,0.21472909,20903.0,20901.0,0.82175373]
[1674065112215,0.752885,20902.0,20901.0,0.82175373]
[1674065112496,0.69313709,20903.0,20901.0,0.82175373]
[1674065112789,0.69313709,20903.0,20901.0,0.87175373]
[1674065113053,0.69313709,20903.0,20901.0,0.82175373]
[1674065113054,1.17153709,20903.0,20901.0,0.82175373]
[1674065113312,0.004,20902.0,20901.0,0.87175373]
[1674065113571,1.235308,20902.0,20901.0,0.82175373]
[1674065113831,1.235308,20902.0,20901.0,0.87175373]
[1674065114127,1.235308,20902.0,20901.0,0.88025373]
[1674065114128,2.19243708,20902.0,20901.0,0.88025373]
[1674065114396,2.19243708,20902.0,20901.0,0.87175373]
[1674065115148,2.18843708,20902.0,20901.0,0.82175373]
[1674065115455,2.39101204,20902.0,20901.0,0.87175373]
[1674065115727,2.39101204,20902.0,20901.0,0.88025373]
[1674065115995,2.39101204,20902.0,20901.0,0.87175373]
[1674065115996,2.86821373,20902.0,20901.0,0.87175373]
[1674065116251,2.94601373,20902.0,20901.0,0.87175373]
[1674065116507,3.10046782,20902.0,20901.0,0.65]
[1674065117287,3.10046782,20902.0,20900.0,0.00729066]
[1674065117288,3.09646782,20902.0,20900.0,0.00729066]
[1674065117539,2.14398035,20901.0,20900.0,0.00729066]
[1674065117790,3.10087235,20901.0,20900.0,0.00729066]
[1674065118592,2.74298477,20901.0,20900.0,0.00729066]
[1674065118852,2.66568477,20901.0,20900.0,0.00729066]
[1674065119118,2.71168477,20901.0,20900.0,0.01129066]
[1674065120177,1.75455569,20901.0,20900.0,0.01129066]
[1674065120469,1.75455569,20901.0,20900.0,0.01979066]
[1674065120993,3.07559204,20901.0,20900.0,0.01979066]
[1674065121260,3.44978047,20901.0,20900.0,0.01129066]
[1674065121519,3.7466757,20901.0,20900.0,0.01129066]
[1674065121774,3.3326595,20901.0,20900.0,0.01129066]
[1674065122235,3.6326595,20901.0,20900.0,0.01129066]
[1674065122754,3.26879392,20901.0,20900.0,0.01129066]
[1674065123021,2.96879392,20901.0,20900.0,0.01129066]
[1674065123527,3.16879392,20901.0,20900.0,0.01129066]
[1674065123776,3.16879392,20901.0,20900.0,0.11451409]
[1674065124053,3.09159392,20901.0,20900.0,0.01129066]
[1674065124619,1.93442315,20901.0,20900.0,0.01129066]
[1674065124875,1.93442315,20901.0,20900.0,0.01979066]
[1674065125411,2.8916202,20901.0,20900.0,0.01979066]
[1674065125928,1.45722146,20901.0,20900.0,0.01979066]
[1674065127502,1.277354,20901.0,20900.0,0.01979066]
[1674065127754,1.277354,20901.0,20900.0,0.11599066]
[1674065128006,1.002892,20901.0,20900.0,0.01979066]
[1674065128583,1.48009369,20901.0,20900.0,0.01129066]
[1674065128762,1.75455569,20901.0,20900.0,0.01129066]
[1674065129261,2.23453661,20901.0,20900.0,0.011204]
[1674065129554,1.277354,20901.0,20900.0,0.011204]
[1674065129842,1.277354,20901.0,20900.0,0.019704]
[1674065130072,2.23456125,20901.0,20900.0,0.019704]
[1674065130330,2.95995423,20901.0,20900.0,0.019704]
[1674065130834,2.95995423,20901.0,20900.0,0.011204]
[1674065132613,3.15995423,20901.0,20900.0,0.011204]
[1674065133130,2.95995423,20901.0,20900.0,0.011204]
[1674065133404,3.03775423,20901.0,20900.0,0.02943238]
[1674065133673,2.78956294,20901.0,20900.0,0.02943238]
[1674065133900,2.71176294,20901.0,20900.0,0.02943238]
[1674065134684,1.277354,20901.0,20900.0,0.03793238]
[1674065135982,1.277354,20901.0,20900.0,0.63793238]
[1674065136502,2.23453406,20901.0,20900.0,0.63793238]
[1674065137823,1.277354,20901.0,20900.0,0.63793238]
[1674065138066,1.002892,20901.0,20900.0,0.63793238]
[1674065138319,1.277354,20901.0,20900.0,0.63793238]
[1674065138883,1.002892,20901.0,20900.0,0.63802513]
[1674065139125,1.002892,20901.0,20900.0,0.63793238]
[1674065139924,2.23450799,20901.0,20900.0,0.63793238]
[1674065142571,2.23451576,20901.0,20900.0,0.63793238]
[1674065142844,1.277354,20901.0,20900.0,0.63793238]
[1674065143101,0.798908,20901.0,20900.0,0.63793238]
[1674065143370,0.046,20901.0,20900.0,0.63793238]
[1674065143622,0.478442,20902.0,20901.0,0.55692893]
[1674065143908,2.09166363,20902.0,20901.0,0.55692893]
[1674065144175,2.09166363,20902.0,20901.0,0.56542893]
[1674065144176,2.36554983,20902.0,20901.0,0.56542893]
[1674065145420,2.36610663,20902.0,20901.0,0.56542893]
[1674065145650,2.36610663,20902.0,20901.0,0.57042893]
[1674065146182,1.88768363,20902.0,20901.0,0.57042893]
[1674065146720,2.36610663,20902.0,20901.0,0.57042893]
[1674065150658,2.18841,20902.0,20901.0,0.57042893]
[1674065150923,0.956862,20902.0,20901.0,0.57042893]
[1674065151455,1.231324,20902.0,20901.0,0.57042893]
[1674065151740,2.33843136,20902.0,20901.0,0.57042893]